Cogmind - Beta 14 --- EXPLORER MODE // 2024.11.15 @ 01:54:08 Player: Asura Daeva Result: Self-destructed Performance ------------- Evolutions (6) 3000 Regions Visited (10) 2000 Robots Destroyed (269) 1345 Value Destroyed (8525) 8525 Prototype IDs (19) 380 Alien Tech Used (1) 200 Bonus (506) 506 TOTAL SCORE: 15956 Bonus ------- High Alert Combat Kills 6 Entered DSFs 500 Cogmind --------- Core Integrity 1127/1150 Matter 289/300 Energy 44/100 System Corruption 12% Temperature Cool (0) Movement Treading (166) Location -4/Factory Parts ------- > --- POWER (1) -------- (None) > --- PROPULSION (4) --- Armored Medium Treads Armored Medium Treads Heavy Treads > --- UTILITY (10) ----- Improved Coolant Injector High-capacity Storage Unit Advanced Signal Interpreter Improved Target Analyzer Layered Heavy Armor Plating Graphene Brace > --- WEAPON (5) ------- Neutron Cannon Mini Assault Cannon Heavy Gauss Cannon > --- INVENTORY (20) --- F-cell Engine Armored Medium Treads Advanced Heat Sink Advanced Coolant Injector Matter Compressor (158) Triangulator Recoil Nullifier Matter Filter Faulty Precision Energy Filter Kinecellerator Improved Transmission Jammer Layered Heavy Armor Plating Force Field Long-range Tractor Beam Improved Recalibrator KE Penetrator Magnetic Acceleration Cannon Plasma Cutter Powered Hammer Peak State ------------ > --- POWER ------------ Antimatter Reactor > --- PROPULSION ------- Armored Medium Treads Armored Medium Treads Heavy Treads > --- UTILITY ---------- Improved Cooling System Improved Coolant Injector High-capacity Storage Unit Advanced Signal Interpreter Advanced Targeting Computer Improved Target Analyzer Layered Heavy Armor Plating Graphene Brace Improved Shock Absorption System > --- WEAPON ----------- Neutron Cannon KE Penetrator Mini Assault Cannon Magnetic Acceleration Cannon Heavy Gauss Cannon > --- INVENTORY -------- F-cell Engine Armored Medium Treads Matter Compressor Triangulator Recoil Nullifier Matter Filter Precision Energy Filter Kinecellerator Improved Transmission Jammer Layered Heavy Armor Plating Force Field System Restoration Module Long-range Tractor Beam Improved Recalibrator Neutron Cannon Magnetic Acceleration Cannon Plasma Cutter Powered Hammer [Rating: 120] Favorites ----------- Power Enhanced Nuclear Core Engine F-cell Engine Power Core Enhanced Nuclear Core Reactor Antimatter Reactor Propulsion Armored Medium Treads Treads Armored Medium Treads Leg Aluminum Leg Utility Advanced Targeting Computer Device Graphene Brace Storage Medium Storage Unit Processor Advanced Targeting Computer Hackware Advanced Hacking Suite Protection Layered Heavy Armor Plating Weapon Magnetic Acceleration Cannon Energy Gun Heavy Particle Gun Energy Cannon Neutron Cannon Ballistic Gun Improved Assault Rifle Ballistic Cannon Magnetic Acceleration Cannon Special Weapon Plasma Cutter Impact Weapon Maul Slashing Weapon Chainsword Build | -11 -10 -9 -8 -7 -6 -6 -5 -5 -5 -4 ------- Run | Yrd Mat Mat Mat Fac Fac DSF Fac Upp Upp Fac Slots Evolved 13 | . 1 2 2 2 2 . 2 . . 2 Power . | . . . . . . . . . . . Propulsion 2 | . . . . . 2 . . . . . Utility 8 | . . 2 . 2 . . 2 . . 2 Weapon 3 | . 1 . 2 . . . . . . . Parts Attached 180 | 8 4 33 17 45 7 1 41 2 9 13 Power 10 | 1 . 4 1 2 . . 1 . . 1 Engine 7 | 1 . 4 1 . . . 1 . . . Core 2 | . . . . 2 . . . . . . Reactor 1 | . . . . . . . . . . 1 Propulsion 27 | 2 . 10 1 6 2 . 5 . . 1 Treads 20 | . . 5 1 6 2 . 5 . . 1 Leg 7 | 2 . 5 . . . . . . . . Wheel . | . . . . . . . . . . . Hover . | . . . . . . . . . . . Flight . | . . . . . . . . . . . Utility 72 | 3 2 6 6 15 2 . 23 2 5 8 Device 45 | . 2 3 3 9 2 . 15 1 5 5 Storage 9 | 2 . 2 1 2 . . 2 . . . Processor 10 | 1 . 1 2 2 . . 3 . . 1 Hackware 2 | . . . . . . . 1 1 . . Protection 6 | . . . . 2 . . 2 . . 2 Artifact . | . . . . . . . . . . . Weapon 71 | 2 2 13 9 22 3 1 12 . 4 3 Energy Gun 17 | 2 1 7 3 4 . . . . . . Energy Cannon 13 | . . 2 3 2 1 . 3 . 1 1 Ballistic Gun 14 | . . . 2 11 . . 1 . . . Ballistic Cannon 15 | . . . . 4 2 1 5 . 1 2 Launcher . | . . . . . . . . . . . Special Weapon 2 | . . . . . . . . . 2 . Impact Weapon 8 | . 1 4 1 . . . 2 . . . Slashing Weapon 2 | . . . . 1 . . 1 . . . Piercing Weapon . | . . . . . . . . . . . Special Melee Weapon . | . . . . . . . . . . . Unidentified Prototypes 9 | . . 2 1 2 . . 3 . 1 . Parts Lost 11 | . . 1 . . . . 1 . . 9 Power 1 | . . . . . . . . . . 1 Propulsion 1 | . . . . . . . . . . 1 Utility 5 | . . . . . . . . . . 5 Weapon 4 | . . 1 . . . . 1 . . 2 Highest Loss Streak 6 | . . 1 . . . . 1 . . 6 To Critical Strikes . | . . . . . . . . . . . Average Slot Usage (%) 95 | . 100 99 99 97 98 100 92 94 93 89 Engine 3 | . 12 10 7 1 . . . 5 5 1 Core 2 | . . . . 5 6 6 4 . . . Treads 16 | . . 6 16 13 23 25 21 22 22 15 Leg 2 | . 25 13 . . . . . . . . Device 14 | . 6 20 15 12 12 12 12 15 15 18 Storage 6 | . 6 10 8 7 6 6 5 5 5 5 Processor 13 | . 12 10 8 17 18 18 13 11 11 15 Protection 3 | . . . . 2 . . 4 5 5 5 Energy Gun 5 | . 28 20 9 8 . . . . . . Energy Cannon 4 | . . 1 6 3 5 6 4 5 8 9 Ballistic Gun 4 | . . . 15 9 . . . 5 5 3 Ballistic Cannon 10 | . . . . 6 17 18 18 16 9 12 Impact Weapon 3 | . 8 8 7 6 . . 1 . . . Peak Build Rating 120 | 7 10 20 31 57 67 68 106 106 104 120 Average Rating 68 | 6 8 15 27 45 65 67 97 103 100 115 On Entrance 51 | . 7 9 20 31 57 67 68 106 102 100 Naked Turns . | . . . . . . . . . . . Heaviest Build 123 | 19 17 32 40 44 49 49 112 111 111 123 Greatest Support 124 | 20 20 40 40 40 92 92 111 111 111 124 Greatest Overweight (x) 2 | 2 . 1 . 1 . . 1 . . 1 Average Overweight (x) . | . . . . . . . . . . . Largest Inventory Capacity 20 | 10 8 10 10 10 10 10 20 20 20 20 Average Capacity 14 | 8 6 8 10 9 10 10 17 20 20 20 Most Carried 20 | 8 8 10 10 10 10 10 20 20 19 20 Average Carried 13 | 6 6 8 9 9 9 9 16 19 18 19 Final Capacity 20 | 8 5 10 10 10 10 10 20 20 20 20 Final Carried 20 | 8 5 10 10 10 10 10 20 19 18 20 Class Distribution -------------------- 81% | Hacker-Gunner 11% | Hacker-Mutant 5% | Hacker-Tank Dominant Class ---------------- Hacker-Mutant | -10/Materials Hacker-Mutant | -9/Materials Hacker-Gunner | -8/Materials Hacker-Gunner | -7/Factory Hacker-Gunner | -6/Factory Hacker-Gunner | -6/DSF Hacker-Gunner | -5/Factory Hacker-Gunner | -5/Upper Caves Hacker-Gunner | -5/Upper Caves Hacker-Tank | -4/Factory Resources | -11 -10 -9 -8 -7 -6 -6 -5 -5 -5 -4 ----------- Run | Yrd Mat Mat Mat Fac Fac DSF Fac Upp Upp Fac Matter Collected 6780 | 280 40 330 282 1478 40 258 2972 402 127 571 Remotely . | . . . . . . . . . . . Salvage Created 9798 | 184 365 1688 973 2815 . 378 2828 21 167 379 Parts 417 | 11 16 68 43 119 . 9 123 . 6 22 Haulers Intercepted 13 | . 1 5 1 3 . 1 2 . . . Recyclers Shooed 10 | . . 4 1 1 1 . 3 . . . Parts Field Recycled . | . . . . . . . . . . . Retrieved Matter . | . . . . . . . . . . . Parts Self-Destructed . | . . . . . . . . . . . Prevented . | . . . . . . . . . . . Kills | -11 -10 -9 -8 -7 -6 -6 -5 -5 -5 -4 ------- Run | Yrd Mat Mat Mat Fac Fac DSF Fac Upp Upp Fac Combat Hostiles Destroyed 156 | . 7 21 17 40 . 7 49 3 5 7 Melee 3 | . . 1 1 1 . . . . . . Guns 49 | . 6 16 6 20 . . . . . 1 Cannons 92 | . . . 9 17 . 7 47 3 4 5 AOE 4 | . . 1 . . . . 1 . 1 1 Classes Destroyed 19 | 3 4 5 . 6 . . . 1 . . Worker 17 | 2 1 2 3 7 . . 1 . . 1 Builder 29 | . . 5 1 10 . . 10 . . 3 Tunneler 7 | 3 . . 1 . . . 2 . . 1 Hauler 13 | . 1 5 1 3 . 1 2 . . . Recycler 25 | 1 . 7 3 7 . . 7 . . . Mechanic 2 | . . 1 . . . . 1 . . . Operator 1 | . . 1 . . . . . . . . Watcher 19 | . 2 2 4 4 . . 6 . . 1 Swarmer 29 | . 2 3 10 5 . . 7 . 2 . Grunt 63 | . 5 12 4 14 . 4 18 . 3 3 Brawler 1 | . . . . 1 . . . . . . Duelist 1 | . . 1 . . . . . . . . Protector 1 | . . . . 1 . . . . . . Sentry 18 | . . 5 3 5 . . 4 . . 1 Specialist 7 | . . . . 5 . 2 . . . . Hunter 9 | . . . . 2 . . 6 1 . . Programmer 23 | . . . . 6 . . 14 1 . 2 Heavy 2 | . . . . 1 . 1 . . . . Behemoth 2 | . . . . . . . . 1 . 1 Best Kill Streak 10 | 4 3 6 5 10 . 3 5 2 3 5 Combat Bots Only 6 | . 3 5 4 6 . 3 5 2 3 3 Max Kills in Single Turn 2 | 1 1 1 2 2 . 1 2 1 2 2 Gunslinging . | . . . . . . . . . . . Exploded 1 | . . 1 . . . . 1 . 1 1 Melee 1 | . . 1 1 1 . . . . . . Uniques/NPCs Destroyed . | . . . . . . . . . . . Combat | -11 -10 -9 -8 -7 -6 -6 -5 -5 -5 -4 -------- Run | Yrd Mat Mat Mat Fac Fac DSF Fac Upp Upp Fac Hostile Shots Fired 861 | . 78 90 59 270 . 38 203 39 14 70 Missed 270 | . 29 40 22 89 . 11 57 11 2 9 Damage Taken 7907 | . 341 749 316 1422 . 324 1994 375 134 2252 Core 749 | . 97 135 43 138 . 114 178 21 . 23 Absorbed by Shields . | . . . . . . . . . . . Ignored by Resistances 4038 | . 221 257 201 884 . 195 1057 222 82 919 Regen/Repaired (Parts) 1089 | . . . 81 120 . . 888 . . . Core Remaining (%) 80 | 100 61 66 92 80 . 86 . . 80 . Volleys Fired 542 | 7 27 64 33 129 1 14 156 12 7 92 Largest 5 | 2 3 3 4 4 1 4 5 5 5 5 Hottest 342 | 100 140 156 196 243 75 229 305 277 277 342 Shots Fired 1544 | 14 58 138 130 439 1 56 447 52 30 179 Gun 641 | 14 58 134 88 311 . . . 12 7 17 Cannon 903 | . . 4 42 128 1 56 447 40 23 162 Launcher . | . . . . . . . . . . . Special . | . . . . . . . . . . . Kinetic 788 | . . . 64 209 . 42 332 48 20 73 Thermal 756 | 14 58 138 66 230 1 14 115 4 10 106 Explosive . | . . . . . . . . . . . Electromagnetic . | . . . . . . . . . . . Robot Hit Streak 101 | 9 18 21 31 61 . 101 55 45 59 22 Robot Miss Streak 4 | . 2 2 4 2 . 1 2 1 1 3 Penetration Max 1 | . . . . . . . . . 1 . Secondary Targets 3 | . . 1 2 . . . . . . . Max Gunslinging Chain 1 | . . 1 1 . . . . . . . Shots Hit Robots 1106 | 9 49 132 97 317 1 47 299 47 18 90 Core Hits 377 | 7 15 56 29 108 . 15 109 9 8 21 Critical Kills 5 | . . . 3 1 . . 1 . . . Critical Parts Destroyed 22 | . 2 5 5 9 . . . . . 1 Critical Strikes 95 | . 4 13 9 24 . 4 30 3 . 8 Burn 21 | . 2 8 1 10 . . . . . . Meltdown 3 | . . . 2 . . . 1 . . . Destroy 4 | . . . . 3 . . . . . 1 Blast 46 | . . . . 4 . 4 28 3 . 7 Smash 20 | . 2 5 6 7 . . . . . . Sever 1 | . . . . . . . 1 . . . Melee Attacks 293 | . 17 59 26 122 12 9 48 . . . Impact 229 | . 17 59 26 107 . . 20 . . . Slashing 64 | . . . . 15 12 9 28 . . . Piercing . | . . . . . . . . . . . Sneak Attacks 59 | . 3 16 7 16 1 1 15 . . . Combat Hostiles 1 | . . 1 . . . . . . . . Follow-up Attacks . | . . . . . . . . . . . Damage Inflicted 31367 | 114 834 3384 2318 7444 70 1303 10858 1243 689 3110 Guns 7423 | 114 472 1375 811 3862 . . . 287 123 379 Cannons 16628 | . . 40 724 1991 . 1227 8741 956 466 2483 Explosions 729 | . . 175 . . . . 206 . 100 248 Melee 6556 | . 362 1794 783 1591 70 76 1880 . . . Ramming 31 | . . . . . . . 31 . . . Kinetic 13774 | . . . 468 2892 . 877 6411 1134 362 1630 Thermal 10831 | 114 472 1415 1067 2961 . 350 2536 109 327 1480 Explosive 175 | . . 175 . . . . . . . . Electromagnetic . | . . . . . . . . . . . Impact 4900 | . 362 1794 783 1445 . . 516 . . . Slashing 1656 | . . . . 146 70 76 1364 . . . Piercing . | . . . . . . . . . . . Highest Corruption 7 | . 1 . 1 . . . 1 . . 7 Average Corruption 1 | . 1 . 1 . . . 1 . . 1 Corruption Purged 2 | . . . . . . . 1 . . 1 Corruption Blocked 7 | . . . . 3 . . 4 . . . Effects 12 | . 2 . 1 . . . 4 . . 5 Message Errors 2 | . . . . . . . . . . 2 Matter Fused 2 | . . . . . . . 2 . . . Heat Flow Errors 1 | . . . 1 . . . . . . . Data Loss (minor) 5 | . 2 . . . . . 2 . . 1 Weapon Failures 2 | . . . . . . . . . . 2 Overload Shots . | . . . . . . . . . . . Overflow Damage 3363 | . 192 647 533 886 . . 923 30 21 131 Projectiles 411 | . . 5 13 34 . . 210 30 21 98 Explosions 37 | . . 4 . . . . . . . 33 Melee 2915 | . 192 638 520 852 . . 713 . . . Knockbacks 116 | . 3 11 3 21 . 9 60 . 4 5 Impact 27 | . 3 11 3 7 . . 3 . . . Kinetic 87 | . . . . 14 . 9 55 . 4 5 Secondary 2 | . . . . . . . 2 . . . Self-Inflicted Damage 140 | . . 29 . . . . 73 . 13 25 Shots 5 | . . 1 . . . . 2 . 1 1 Rammed 4 | . . . . . . . 4 . . . Targets Rammed 5 | . . . . . . . 5 . . . Kicked . | . . . . . . . . . . . Crushed 1 | . . . . . . . 1 . . . Highest Temperature 387 | 78 282 194 225 387 . 75 365 318 283 264 Average Temperature 84 | 31 86 48 66 85 . 26 95 120 128 103 Received Heat Transfer 1743 | . 267 213 117 324 . 99 441 36 48 198 Effects 11 | . 1 . . . . . 10 . . . Energy Bleed 4 | . 1 . . . . . 3 . . . Interference 6 | . . . . . . . 6 . . . Matter Decay 1 | . . . . . . . 1 . . . Siege Activations . | . . . . . . . . . . . Robots Corrupted 23 | . 2 8 4 6 . . 3 . . . Combat Hostiles 4 | . 1 2 . 1 . . . . . . Parts Fried 51 | . 3 11 5 26 . . 6 . . . Impact Corruptions 75 | . 4 25 15 23 . . 8 . . . Robots Melted 5 | . . 1 2 1 . . 1 . . . Combat Hostiles 4 | . . 1 1 1 . . 1 . . . Parts Melted 47 | . . 13 9 22 . . 3 . . . Heat Transferred 16687 | 333 1554 4329 2035 6148 . 518 1570 . 100 100 Parts Sabotaged . | . . . . . . . . . . . Parts Stolen . | . . . . . . . . . . . Parts Stripped . | . . . . . . . . . . . Power Chain Reactions 4 | . . . . . . . 1 . 1 2 Alert | -11 -10 -9 -8 -7 -6 -6 -5 -5 -5 -4 ------- Run | Yrd Mat Mat Mat Fac Fac DSF Fac Upp Upp Fac Peak Influence 466 | 30 174 381 466 373 53 209 404 . . 148 Initial 81 | . 14 32 10 16 32 27 81 . . 38 Average 119 | 9 49 168 203 115 42 136 122 . . 69 Maximum Alert Level 2 | . . 1 2 1 . 1 2 . . . Low Security (%) 79 | 100 100 56 63 75 100 63 85 . . 100 Level 1 18 | . . 43 30 24 . 36 11 . . . Level 2 1 | . . . 5 . . . 3 . . . Level 3 . | . . . . . . . . . . . Level 4 . | . . . . . . . . . . . Level 5 . | . . . . . . . . . . . High Security . | . . . . . . . . . . . Max Security . | . . . . . . . . . . . Squads Dispatched 45 | . 2 3 4 15 . 2 14 . . 5 Investigation 8 | . 2 . 1 1 . . 3 . . 1 Extermination 11 | . . . . 4 . . 5 . . 2 Reinforcement 21 | . . 3 2 6 . 2 6 . . 2 Assault . | . . . . . . . . . . . Garrison 5 | . . . 1 4 . . . . . . Intercept . | . . . . . . . . . . . Searches Triggered . | . . . . . . . . . . . Construction Impeded 5 | . . . . . . . 3 . . 2 Haulers Reinforced 3 | . . . . 1 . . 2 . . . Active Scanning Responses . | . . . . . . . . . . . Cargo Convoy Interrupts 1 | . . . . 1 . . . . . . Stealth | -11 -10 -9 -8 -7 -6 -6 -5 -5 -5 -4 --------- Run | Yrd Mat Mat Mat Fac Fac DSF Fac Upp Upp Fac Distress Signals 5 | . 1 1 1 1 . . 1 . . . Communications Jammed . | . . . . . . . . . . . Distress Signals . | . . . . . . . . . . . Times Spotted 227 | . 30 33 26 53 . 7 59 3 6 10 Peak Tracking Total 8 | . 8 5 3 8 . 3 6 1 4 3 Tactical Retreats 18 | . 6 1 2 4 . . 4 . 1 . Traps | -11 -10 -9 -8 -7 -6 -6 -5 -5 -5 -4 ------- Run | Yrd Mat Mat Mat Fac Fac DSF Fac Upp Upp Fac Traps Triggered 5 | . 3 . . . . . . . . 2 Indirectly . | . . . . . . . . . . . Trap Hack Attempts . | . . . . . . . . . . . Triggered . | . . . . . . . . . . . Disarmed 6 | . . 6 . . . . . . . . Reprogrammed . | . . . . . . . . . . . Reused . | . . . . . . . . . . . Traps Extracted . | . . . . . . . . . . . Installed . | . . . . . . . . . . . Triggered . | . . . . . . . . . . . Machines | -11 -10 -9 -8 -7 -6 -6 -5 -5 -5 -4 ---------- Run | Yrd Mat Mat Mat Fac Fac DSF Fac Upp Upp Fac Machines Disabled 13 | . . 1 1 1 . . 7 . 2 1 Max in Single Turn 4 | . . 1 1 1 . . 4 . 1 1 Garrison Access 3 | . . . . 2 . . 1 . . . Machines Repaired . | . . . . . . . . . . . Machines Dismantled 2 | . . . . . . . . . 2 . Machines Sabotaged . | . . . . . . . . . . . Overloaded Fab Kills . | . . . . . . . . . . . Hacking | -11 -10 -9 -8 -7 -6 -6 -5 -5 -5 -4 --------- Run | Yrd Mat Mat Mat Fac Fac DSF Fac Upp Upp Fac Machines Accessed 58 | . 6 6 4 15 4 . 18 1 1 3 Terminals 35 | . 6 6 2 8 2 . 8 1 . 2 Fabricators 5 | . . . . 1 2 . 2 . . . Repair Stations 7 | . . . 2 1 . . 4 . . . Recycling Units 2 | . . . . 1 . . 1 . . . Scanalyzers 4 | . . . . 1 . . 2 . . 1 Garrison Access 4 | . . . . 3 . . 1 . . . Total Hacks 151 | . 22 19 12 38 7 . 44 1 1 7 Successful 90 | . 12 8 9 19 5 . 31 1 1 4 Failed 61 | . 10 11 3 19 2 . 13 . . 3 Catastrophic 13 | . 2 1 . 5 . . 5 . . . Database Lockouts . | . . . . . . . . . . . Manual 46 | . 13 11 2 13 . . 6 1 . . Terminals 92 | . 22 19 5 19 4 . 18 1 . 4 Fabricators 9 | . . . . 1 3 . 5 . . . Repair Stations 23 | . . . 7 4 . . 12 . . . Recycling Units 2 | . . . . 1 . . 1 . . . Scanalyzers 17 | . . . . 7 . . 7 . . 3 Garrison Access 7 | . . . . 6 . . 1 . . . Terminal Hacks 47 | . 12 8 3 7 2 . 11 1 1 2 Record 2 | . . . . . . . . 1 1 . Part Schematic 9 | . 1 . . 3 . . 4 . . 1 Prototype ID Bank 6 | . 3 1 1 1 . . . . . . Open DSF 1 | . . . . . 1 . . . . . Branch Access Points 1 | . . . . . . . . . . 1 Emergency Access Points 1 | . . 1 . . . . . . . . Machine Index 1 | . . . . . . . 1 . . . Unreport Threat 6 | . 3 . . 1 . . 2 . . . Locate Traps 8 | . 2 1 1 . 1 . 3 . . . Disarm Traps 1 | . . 1 . . . . . . . . Reinforcement Status 1 | . . 1 . . . . . . . . Recall Reinforcements 5 | . 1 3 . 1 . . . . . . Hauler Manifests 2 | . 1 . . 1 . . . . . . Registered Components 1 | . 1 . . . . . . . . . Registered Prototypes 2 | . . . 1 . . . 1 . . . Fabricator Hacks 6 | . . . . . 3 . 3 . . . Load Schematic 3 | . . . . . 1 . 2 . . . Build 3 | . . . . . 2 . 1 . . . Repair Station Hacks 18 | . . . 6 2 . . 10 . . . Scan Component 9 | . . . 3 1 . . 5 . . . Repair 9 | . . . 3 1 . . 5 . . . Recycling Unit Hacks 2 | . . . . 1 . . 1 . . . Report Inventory 1 | . . . . . . . 1 . . . Retrieve Components 1 | . . . . 1 . . . . . . Scanalyzer 14 | . . . . 7 . . 5 . . 2 Insert Component 7 | . . . . 3 . . 3 . . 1 Analyze 7 | . . . . 4 . . 2 . . 1 Garrison Access Hacks 3 | . . . . 2 . . 1 . . . Seal Access 3 | . . . . 2 . . 1 . . . Unauthorized Hacks . | . . . . . . . . . . . Terminals . | . . . . . . . . . . . Fabricators . | . . . . . . . . . . . Repair Stations . | . . . . . . . . . . . Recycling Units . | . . . . . . . . . . . Scanalyzers . | . . . . . . . . . . . Garrison Access . | . . . . . . . . . . . Data Cores Recovered . | . . . . . . . . . . . Used . | . . . . . . . . . . . Hacking Detections 51 | . 5 6 4 14 4 . 15 1 . 2 Full Trace Events 8 | . 2 . 1 1 . . 3 . . 1 Feedback Events 2 | . . . 1 . . . 1 . . . Corruption 2 | . . . 1 . . . 1 . . . Feedback Blocked . | . . . . . . . . . . . Robot Schematics Acquired . | . . . . . . . . . . . Robots Built . | . . . . . . . . . . . Authchips . | . . . . . . . . . . . Time . | . . . . . . . . . . . Total Robot Build Rating . | . . . . . . . . . . . Part Schematics Acquired 15 | . 1 . . 6 . . 6 . . 2 Parts Built 5 | . . . . . 4 . 1 . . . Authchips . | . . . . . . . . . . . Time 215 | . . . . . 190 . 25 . . . Total Part Build Rating 21 | . . . . . 20 . 1 . . . Parts Repaired 9 | . . . 3 1 . . 5 . . . Time 301 | . . . 77 19 . . 205 . . . Parts Recycled . | . . . . . . . . . . . Recycled Matter . | . . . . . . . . . . . Retrieved Matter . | . . . . . . . . . . . Retrieved Components 10 | . . . . 10 . . . . . . Parts Scanalyzed 7 | . . . . 3 . . 3 . . 1 Part Schematics Acquired 6 | . . . . 3 . . 2 . . 1 Parts Damaged . | . . . . . . . . . . . Bothacking | -11 -10 -9 -8 -7 -6 -6 -5 -5 -5 -4 ------------ Run | Yrd Mat Mat Mat Fac Fac DSF Fac Upp Upp Fac Used RIF Installer . | . . . . . . . . . . . Robots Hacked . | . . . . . . . . . . . Non-combat . | . . . . . . . . . . . Combat . | . . . . . . . . . . . Robot Hacks Applied . | . . . . . . . . . . . Relay Couplers Released . | . . . . . . . . . . . Fabnet Peak Effective % . | . . . . . . . . . . . Robots Rewired . | . . . . . . . . . . . Allies Hacked . | . . . . . . . . . . . Hacks Repelled . | . . . . . . . . . . . Allies | -11 -10 -9 -8 -7 -6 -6 -5 -5 -5 -4 -------- Run | Yrd Mat Mat Mat Fac Fac DSF Fac Upp Upp Fac Total Allies . | . . . . . . . . . . . Largest Group . | . . . . . . . . . . . Highest-Rated Group . | . . . . . . . . . . . Highest-Rated Ally . | . . . . . . . . . . . Total Orders . | . . . . . . . . . . . Ally Attacks . | . . . . . . . . . . . Total Damage . | . . . . . . . . . . . Kills . | . . . . . . . . . . . Allies Corrupted . | . . . . . . . . . . . Allies Melted . | . . . . . . . . . . . Intel | -11 -10 -9 -8 -7 -6 -6 -5 -5 -5 -4 ------- Run | Yrd Mat Mat Mat Fac Fac DSF Fac Upp Upp Fac Robot Analysis Total . | . . . . . . . . . . . Derelict Logs Recovered 4 | . . . . . . . . 2 2 . Drone Launches . | . . . . . . . . . . . Drone Recoveries . | . . . . . . . . . . . Exploration | -11 -10 -9 -8 -7 -6 -6 -5 -5 -5 -4 ------------- Run | Yrd Mat Mat Mat Fac Fac DSF Fac Upp Upp Fac Turns Passed 12907 | 139 584 1345 843 2953 341 238 3354 1427 645 1038 Spaces Moved 5881 | 84 340 580 351 1240 180 99 1455 810 343 399 Core 9 | 9 . . . . . . . . . . Treads 5082 | . . 205 351 1240 180 99 1455 810 343 399 Legs 790 | 75 340 375 . . . . . . . . Wheels . | . . . . . . . . . . . Hover . | . . . . . . . . . . . Flight . | . . . . . . . . . . . Fastest Speed 50 | 50 120 120 160 160 161 161 161 167 167 166 Average Speed 163 | 115 120 152 160 164 161 161 176 167 167 167 Slowest Speed 250 | 190 120 190 160 245 170 161 247 167 167 250 Overloaded Moves . | . . . . . . . . . . . Propulsion Burnouts . | . . . . . . . . . . . Robots Hopped . | . . . . . . . . . . . Cave-ins Triggered 5 | . . 1 . . . . 1 . . 3 Exploration Rate (%) 43 | 4 70 61 36 34 4 92 34 89 50 9 Regions Visited 10 Branch Regions 2 Pre-discovered Areas 2 | . . . . . . . . . 2 . Known Exits Taken 9 | 1 1 1 1 1 1 . 1 1 1 . Unknown Exits Taken . | . . . . . . . . . . . Scrap Searched 3 | . . . . . . . . 3 . . Spaces Dug 308 | . 10 27 14 104 11 6 70 . . 66 Terrain Destroyed 493 | . 10 35 14 110 11 7 189 4 19 94 Melee 183 | . 10 27 14 93 11 6 22 . . . Projectile 217 | . . . . 14 . 1 103 4 8 87 AOE 90 | . . 8 . . . . 64 . 11 7 Terrain Rammed . | . . . . . . . . . . . Walls Destroyed . | . . . . . . . . . . . Machines Disabled . | . . . . . . . . . . . Actions | -11 -10 -9 -8 -7 -6 -6 -5 -5 -5 -4 --------- Run | Yrd Mat Mat Mat Fac Fac DSF Fac Upp Upp Fac Total 7481 | 108 428 797 499 1631 213 132 1838 854 372 609 Wait 325 | . 30 22 52 28 . 1 73 28 1 90 Move 5869 | 83 339 579 350 1239 179 98 1454 809 342 397 Hop . | . . . . . . . . . . . Pick Up 110 | 9 5 14 9 23 4 4 32 1 . 9 Fast Attach 51 | 7 2 8 5 19 4 . 4 . 1 1 Attach 28 | . . 2 3 4 1 1 7 2 2 6 Detach 13 | . . 1 . 4 2 . 4 . 1 1 Swap 102 | 1 2 23 9 22 2 . 30 . 7 6 Drop 131 | 1 6 25 12 41 8 5 25 2 1 5 Fire 542 | 7 27 64 33 129 1 14 156 12 7 92 Melee 293 | . 17 59 26 122 12 9 48 . . . Ram . | . . . . . . . . . . . Kick . | . . . . . . . . . . . Crush 5 | . . . . . . . 5 . . . Escape Stasis 2 | . . . . . . . . . . 2 Rewire . | . . . . . . . . . . . Trap . | . . . . . . . . . . . Miscellaneous 10 | . . . . . . . . . 10 . Route ------- -11/Scrapyard -10/Materials (discovered 3 exits: *Mat x2 / *Min) -9/Materials (discovered 2 exits: *Mat / *Min) -8/Materials -7/Factory -6/Factory (discovered 2 exits: *Low / DSF) -6/DSF -5/Factory (discovered 3 exits: *Fac / *Upp x2) -5/Upper Caves -5/Upper Caves -4/Factory (discovered 6 exits: *Res / Upp x2 / Ext x2 / Arm) History --------- Turn | Location | Event 9 | -11/Scrapyard | Identified exit to Materials 9 | -11/Scrapyard | Discovered exit to Materials (range 16) 140 | -11/Scrapyard | Entered Materials 140 | -10/Materials | Evolved 1 slot: Weapon x1 264 | -10/Materials | Identified exit to Mines 264 | -10/Materials | Discovered exit to Mines (range 16) 326 | -10/Materials | Identified exit to Materials 326 | -10/Materials | Discovered exit to Materials (range 3) 623 | -10/Materials | Build established: Hacker-Mutant 707 | -10/Materials | Discovered exit to Materials (range 8) 724 | -10/Materials | Entered another Materials area 724 | -9/Materials | Evolved 2 slots: Utility x2 1714 | -9/Materials | Identified exit to Mines 1714 | -9/Materials | Discovered exit to Mines (range 11) 1895 | -9/Materials | Crushed by falling debris 2047 | -9/Materials | Identified exit to Materials 2047 | -9/Materials | Discovered exit to Materials (range 4) 2069 | -9/Materials | Entered another Materials area 2069 | -8/Materials | Evolved 2 slots: Weapon x2 2214 | -8/Materials | Garrison activated, responded to threat 2367 | -8/Materials | Build established: Hacker-Gunner 2502 | -8/Materials | Repaired ECM Suite 2529 | -8/Materials | Repaired Heat Sink 2721 | -8/Materials | Identified exit to Factory 2721 | -8/Materials | Discovered exit to Factory (range 16) 2858 | -8/Materials | Repaired Cld. Ion Engine? 2912 | -8/Materials | Entered Factory 2912 | -7/Factory | Evolved 2 slots: Utility x2 3472 | -7/Factory | Garrison activated, responded to threat 3631 | -7/Factory | Cargo convoy interrupted 3894 | -7/Factory | Garrison activated, responded to threat 4999 | -7/Factory | Repaired Arm. Treads 5696 | -7/Factory | Identified exit to Factory 5696 | -7/Factory | Discovered exit to Factory (range 11) 5865 | -7/Factory | Entered another Factory area 5865 | -6/Factory | Evolved 2 slots: Propulsion x2 6102 | -6/Factory | Fabricated Magnetic Acceleration Cannon? 6110 | -6/Factory | Fabricated Adv. Heat Sink (x2) 6164 | -6/Factory | Identified exit to Lower Caves 6164 | -6/Factory | Discovered exit to Lower Caves (range 16) 6205 | -6/Factory | Identified exit to DSF 6206 | -6/Factory | Entered DSF 6235 | -6/DSF | Additional patrols routed to DSF 6346 | -6/DSF | Identified exit to Factory 6346 | -6/DSF | Discovered exit to Factory (range 11) 6444 | -6/DSF | Entered Factory 6444 | -5/Factory | Evolved 2 slots: Utility x2 6551 | -5/Factory | Crushed by falling debris 6657 | -5/Factory | Identified exit to Upper Caves 6657 | -5/Factory | Discovered exit to Upper Caves (range 7) 7083 | -5/Factory | Fabricated Lrg. Storage Unit (x1) 8163 | -5/Factory | Identified exit to Factory 8163 | -5/Factory | Discovered exit to Factory (range 11) 8340 | -5/Factory | Repaired Magnetic Acceleration Cannon 8648 | -5/Factory | Repaired Lyr. Heavy Armor Plating 9038 | -5/Factory | Repaired Arm. Medium Treads 9096 | -5/Factory | Repaired Magnetic Acceleration Cannon 9135 | -5/Factory | Repaired Arm. Medium Treads 9783 | -5/Factory | Discovered exit to Upper Caves (range 4) 9798 | -5/Factory | Entered Upper Caves 9819 | -5/Upper Caves | Learned Factory security intel 9916 | -5/Upper Caves | Spotted B-75 Beast 9942 | -5/Upper Caves | Destroyed B-75 Beast 10653 | -5/Upper Caves | Learned Factory non-interactive machine intel 10692 | -5/Upper Caves | Identified exit to Upper Caves 10692 | -5/Upper Caves | Discovered exit to Upper Caves (range 7) 11225 | -5/Upper Caves | Entered another Upper Caves area 11377 | -5/Upper Caves | Learned location of Armory (-4) 11522 | -5/Upper Caves | Found Alien Artifact 11522 | -5/Upper Caves | Identified Dimensional Node Initializer 11522 | -5/Upper Caves | Initialized slip node 11751 | -5/Upper Caves | Discovered exit to Factory (range 11) 11870 | -5/Upper Caves | Entered Factory 11870 | -4/Factory | Evolved 2 slots: Utility x2 11872 | -4/Factory | Loaded intel: 206 non-interactive machine locations 12089 | -4/Factory | Identified exit to Upper Caves 12089 | -4/Factory | Identified exit to Extension 12089 | -4/Factory | Identified exit to Armory 12212 | -4/Factory | Build established: Hacker-Tank 12346 | -4/Factory | Crushed by falling debris 12454 | -4/Factory | Identified exit to Research 12454 | -4/Factory | Discovered exit to Research (range 7) 12537 | -4/Factory | Spotted B-86 Titan 12587 | -4/Factory | Destroyed B-86 Titan 12882 | -4/Factory | Build established: Hacker-Gunner 12902 | -4/Factory | Crushed by falling debris 12908 | -4/Factory | Crushed by falling debris 12908 | -4/Factory | System corruption reached 10% 12908 | -4/Factory | Self-destructed Last Messages --------------- local area. 12870_ ALERT: Rogue bot located, Programmers report to Factory Zone 3S. 12874_ U-05 Engineer builds a Wall. 12875_ U-05 Engineer works on Assembly Bed. 12902_ The unstable cave ceiling collapses. 12902_ Crushed by falling debris. 12902_ Adv. Targeting Computer destroyed. 12902_ System corrupted by crushing effect (+3). 12902_ Neutron Cannon destroyed. 12902_ System corrupted by crushing effect (+3). 12902_ Antimatter Reactor destroyed. 12902_ System corrupted by crushing effect (+1). 12908_ The unstable cave ceiling collapses. 12908_ Crushed by falling debris. 12908_ Magnetic Acceleration Cannon destroyed. 12908_ System corrupted by crushing effect (+1). 12908_ Imp. Cooling System destroyed. 12908_ System corrupted by crushing effect (+1). 12908_ System Restoration Module destroyed. 12908_ System corrupted by crushing effect (+3). Map ----- +----------------------------------------------------+ | ?????????????????????????????????????????????????? | | ?????????????????????????????????????????????????? | | ?????????????????????????????????????????????????? | | ?????????????????????????????????????????????????? | | ?????????????????"""""""""???????????????????????? | | ?????????????????????????????????????????????????? | | ?????????????????"""""""""???????????????????????? | | ?????????????????????????????????????????????????? | | ?????????????????"""""""""???????????????????????? | | ?????????????????????????????????????????????????? | | ?????????????????"""""""""???????????????"""?"""?? | | ?????????????????????????????????????????"""?"""?? | | ?????????????????????????????????????????"""?"""?? | | ?????????????????????????????????????????????????? | | ?????????????????????????????????????????"""?"""?? | | ?????????????????????????????????????????"""?"""?? | | ?????????????????????????????????????????"""?"""?? | | ?????????????????????????????????????????????????? | | ?????????????????????????????????????????????????? | | ?????###?????????????????????????????????????????? | | ############?????????????????????????????????????? | | #?????????????????????????????????????? | | "" #?????????????????????????????????????? | | """ #?????????????????????????????????????? | | S" ##################????????????????????? | | """ # #@ #????????????????????? | | """ ##################????????????????????? | | #?????????????????????????????????????? | | = #?????????????????????????????????????? | | #?????????????????????????????????????? | | #?????###?????????????????????????????? | | #?????# #?????????????????????????????? | | #???### #?????????????????????????????? | | #################""####??????????????????????????? | | " !! ! #??????????????????????????? | | % # ==| ####??????????????????????????? | | % # * #?????????????????????????????? | | % # #?????????????????????????????? | | # = != #?????????????????????????????? | | #! * != #?????????????????????????????? | | #"!+!"##########?????????????????????????????? | | * #################?????????????????????? | | % # #?????????????????????? | | T # #?????????????????????? | | # #?????????????????????? | | # #?????????????????????? | | !# #?????????????????????? | | # #?????????????????????? | | # #?????????????????????? | | + #?????????????????????? | +----------------------------------------------------+ Best States ------------- Heat Dissipation 86 Coolant Potential 80 Energy Generation 21 Energy Capacity 500 Matter Stores 300 Matter Capacity 300 Sight Range 16 Robot Scan Range 15 Terrain Scan Density 10 ECM Strength 1 Corruption Block 8 Armor Coverage 600 Resistance: KI 35 Resistance: TH 35 Resistance: EX 85 Resistance: EM 35 Resistance: I 35 Resistance: S 35 Resistance: P 35 Evasion (%) 55 Targeting Accuracy 8 Target Analysis 6 Recoil Reduction 6 Energy Filtering 30 Offensive Hacking 34 Defensive Hacking 11 Item Schematics ----------------- Sensor Array | -10/Materials | Hacked Adv. Treads | -7/Factory | Hacked Corruption Screen | -7/Factory | Hacked Enh. Autogun | -7/Factory | Hacked Adv. Heat Sink | -7/Factory | Scanalyzed Mni. Assault Cannon | -7/Factory | Scanalyzed Recoil Stabilizer | -7/Factory | Scanalyzed Lrg. Storage Unit | -5/Factory | Hacked Biometal Medium Treads | -5/Factory | Hacked Imp. Recalibrator | -5/Factory | Hacked Adv. System Restoration Module | -5/Factory | Scanalyzed Graphene Brace | -5/Factory | Scanalyzed Imp. Gyrokinetic Inverter | -5/Factory | Hacked Adv. Heavy Siege Treads | -4/Factory | Hacked F-cell Engine | -4/Factory | Scanalyzed Robot Schematics ------------------ None Fabricated ------------ Magnetic Acceleration Cannon | x2 | -6/Factory | Preloaded Adv. Heat Sink | x2 | -6/Factory Lrg. Storage Unit | x1 | -5/Factory Alien Tech Used ----------------- Dimensional Node Initializer Achievements -------------- None Challenges ------------ None Game ------ Seed ArchitectSalvagingDoomcannon Manual? 0 Play Time 07:08:53 Cumulative 50.7 hours Start 2024.11.13 @ 20:26:57 End 2024.11.15 @ 01:54:08 Sessions 15 Manual Loads 0 Difficulty Explorer Special Mode None Game No. 13 Rogue 0 Adventurer 0 Explorer 13 Win Type - Total 0 Types 0/0/0/0/0/0/0/0/0 Lore% 11 Gallery% 25 Achievement% 33 Wizard Run 0 Options --------- Layout 0 ASCII 0 Keyboard 0 Movement Mouse Keybinds 0 Fullscreen 2 Font 18/X11Bold Map View 76x50 Zoom Use 0% Tactical HUD 1 Map Filters NONE Filters NONE Steam 1 RUN: 8e7bfc6f-ac20-41ac-b8ad-ec421186ffdc